[Event "Late-Titled-Tuesday-Blitz-March-05-2024"]
[Site "Chess.com"]
[Date "2024.03.05"]
[Round "6"]
[White "Schattman"]
[Black "ritanovikova"]
[Result "1-0"]
[WhiteElo "2428"]
[BlackElo "2210"]
[TimeControl "180+1"]
[EndTime "15:04:47 PST"]
[Termination "Schattman won by resignation"]

1. Nf3 {[%clk 0:03:00.9]} 1... Nf6 {[%clk 0:02:59.3]} 2. g3 {[%clk 0:02:59.1]}
2... g6 {[%clk 0:02:59.6]} 3. c4 {[%clk 0:02:59.2]} 3... Bg7 {[%clk 0:03:00.5]}
4. Bg2 {[%clk 0:02:59]} 4... O-O {[%clk 0:03:01.4]} 5. O-O {[%clk 0:02:58.9]}
5... c5 {[%clk 0:03:02.3]} 6. Nc3 {[%clk 0:02:55.7]} 6... Nc6 {[%clk 0:03:02.9]}
7. e4 {[%clk 0:02:53.5]} 7... d6 {[%clk 0:03:03.1]} 8. h3 {[%clk 0:02:54.1]}
8... a6 {[%clk 0:03:03.4]} 9. d3 {[%clk 0:02:54.1]} 9... Qc7 {[%clk 0:03:03.7]}
10. Bf4 {[%clk 0:02:51.5]} 10... Rb8 {[%clk 0:03:02.4]} 11. Re1 {[%clk
0:02:43.2]} 11... b5 {[%clk 0:03:01.7]} 12. e5 {[%clk 0:02:43.6]} 12... Nh5
{[%clk 0:02:59.8]} 13. Nd5 {[%clk 0:02:40.7]} 13... Qd8 {[%clk 0:02:59.5]} 14.
exd6 {[%clk 0:02:08.8]} 14... exd6 {[%clk 0:03:00.4]} 15. Bg5 {[%clk 0:02:05]}
15... Nf6 {[%clk 0:02:38.2]} 16. Rb1 {[%clk 0:02:04.1]} 16... h6 {[%clk
0:02:36.7]} 17. Nxf6+ {[%clk 0:02:03]} 17... Bxf6 {[%clk 0:02:34.7]} 18. Bxh6
{[%clk 0:02:03.3]} 18... Bg7 {[%clk 0:02:34.5]} 19. Bxg7 {[%clk 0:01:59.3]}
19... Kxg7 {[%clk 0:02:34.6]} 20. Qd2 {[%clk 0:01:58.6]} 20... Qf6 {[%clk
0:02:33.1]} 21. cxb5 {[%clk 0:01:50.2]} 21... axb5 {[%clk 0:02:32.8]} 22. Qc3
{[%clk 0:01:50]} 22... Nd4 {[%clk 0:02:21.9]} 23. Nxd4 {[%clk 0:01:44]} 23...
cxd4 {[%clk 0:02:22.8]} 24. Qd2 {[%clk 0:01:43.8]} 24... Be6 {[%clk 0:02:15.7]}
25. b3 {[%clk 0:01:41.3]} 25... Rh8 {[%clk 0:02:15.8]} 26. h4 {[%clk 0:01:41.1]}
26... Rh5 {[%clk 0:02:13.5]} 27. Re4 {[%clk 0:01:22]} 27... g5 {[%clk
0:01:58.4]} 28. hxg5 {[%clk 0:01:09.9]} 28... Rxg5 {[%clk 0:01:58]} 29. Qb2
{[%clk 0:01:02.4]} 29... Rg4 {[%clk 0:01:47]} 30. Rbe1 {[%clk 0:00:51.9]} 30...
d5 {[%clk 0:01:43]} 31. Rxg4+ {[%clk 0:00:46.9]} 31... Bxg4 {[%clk 0:01:43.9]}
32. Bxd5 {[%clk 0:00:43.3]} 32... Rh8 {[%clk 0:01:42.2]} 33. Bg2 {[%clk
0:00:35.9]} 33... Bh3 {[%clk 0:01:38.7]} 34. Re4 {[%clk 0:00:31.1]} 34... Bxg2
{[%clk 0:01:36.8]} 35. Kxg2 {[%clk 0:00:31.4]} 35... Rd8 {[%clk 0:01:34.9]} 36.
Qe2 {[%clk 0:00:30.1]} 36... b4 {[%clk 0:01:32.2]} 37. Qg4+ {[%clk 0:00:28.8]}
37... Kf8 {[%clk 0:01:28.2]} 38. Qf4 {[%clk 0:00:28.3]} 38... Qg7 {[%clk
0:01:21.5]} 39. Qc7 {[%clk 0:00:24.4]} 39... Qg5 {[%clk 0:01:15.8]} 40. Qe5
{[%clk 0:00:17.7]} 40... Qd2 {[%clk 0:01:07.2]} 41. Qe7+ {[%clk 0:00:15.5]} 1-0

[Event "Late-Titled-Tuesday-Blitz-March-05-2024"]
[Site "Chess.com"]
[Date "2024.03.05"]
[Round "6"]
[White "Fandorine"]
[Black "manitodeplomo"]
[Result "1-0"]
[WhiteElo "2917"]
[BlackElo "2720"]
[TimeControl "180+1"]
[EndTime "15:04:49 PST"]
[Termination "Fandorine won on time"]

1. e4 {[%clk 0:03:00.9]} 1... e6 {[%clk 0:03:00.2]} 2. d4 {[%clk 0:03:00.8]}
2... d5 {[%clk 0:03:00.6]} 3. Nc3 {[%clk 0:02:58.2]} 3... Bb4 {[%clk 0:03:00.2]}
4. e5 {[%clk 0:02:55.8]} 4... Ne7 {[%clk 0:03:00.1]} 5. a3 {[%clk 0:02:53.6]}
5... Bxc3+ {[%clk 0:03:00.3]} 6. bxc3 {[%clk 0:02:54.5]} 6... c5 {[%clk
0:03:00.5]} 7. a4 {[%clk 0:02:54.2]} 7... Qa5 {[%clk 0:02:49.4]} 8. Bd2 {[%clk
0:02:53.4]} 8... Nbc6 {[%clk 0:02:35]} 9. f4 {[%clk 0:02:53.4]} 9... Bd7 {[%clk
0:02:21.7]} 10. Nf3 {[%clk 0:02:52.9]} 10... h6 {[%clk 0:02:16.7]} 11. Bd3
{[%clk 0:02:50.8]} 11... c4 {[%clk 0:02:15.7]} 12. Be2 {[%clk 0:02:48.8]} 12...
O-O-O {[%clk 0:02:13.7]} 13. O-O {[%clk 0:02:48.6]} 13... f6 {[%clk 0:02:13.3]}
14. Kh1 {[%clk 0:02:31.5]} 14... Rdf8 {[%clk 0:02:03.6]} 15. Qe1 {[%clk
0:02:29.7]} 15... f5 {[%clk 0:01:42.8]} 16. Bc1 {[%clk 0:02:24.6]} 16... Be8
{[%clk 0:01:36.3]} 17. Ba3 {[%clk 0:02:23.4]} 17... Bh5 {[%clk 0:01:33.1]} 18.
Qd2 {[%clk 0:02:16.9]} 18... Rfg8 {[%clk 0:01:11.8]} 19. Rfb1 {[%clk 0:02:04]}
19... g5 {[%clk 0:01:02.2]} 20. Bxe7 {[%clk 0:01:48.7]} 20... Nxe7 {[%clk
0:01:00.6]} 21. Rb5 {[%clk 0:01:49.4]} 21... Qc7 {[%clk 0:00:58.3]} 22. Rab1
{[%clk 0:01:47.7]} 22... b6 {[%clk 0:00:49.6]} 23. a5 {[%clk 0:01:47.1]} 23...
bxa5 {[%clk 0:00:47.8]} 24. Rc5 {[%clk 0:01:28.4]} 24... Nc6 {[%clk 0:00:47.2]}
25. Bxc4 {[%clk 0:01:20.3]} 25... dxc4 {[%clk 0:00:38.7]} 26. d5 {[%clk
0:01:20.6]} 26... Rd8 {[%clk 0:00:25.2]} 27. d6 {[%clk 0:01:13.1]} 27... Bxf3
{[%clk 0:00:23.3]} 28. gxf3 {[%clk 0:01:07.5]} 28... Qd7 {[%clk 0:00:17.4]} 29.
Qe2 {[%clk 0:01:05.6]} 29... Rdg8 {[%clk 0:00:13]} 30. Qxc4 {[%clk 0:01:04.2]}
30... Kd8 {[%clk 0:00:10.7]} 31. Rxc6 {[%clk 0:01:02.9]} 31... Ke8 {[%clk
0:00:09.8]} 32. Rc8+ {[%clk 0:01:01.9]} 32... Kf7 {[%clk 0:00:09.1]} 33. Rc7
{[%clk 0:01:02.6]} 33... Qxc7 {[%clk 0:00:08.6]} 34. Qxc7+ {[%clk 0:01:01.5]}
34... Kg6 {[%clk 0:00:08.5]} 35. Qe7 {[%clk 0:01:02]} 35... Kh5 {[%clk
0:00:07.4]} 36. Qxe6 {[%clk 0:01:02.1]} 36... g4 {[%clk 0:00:05.1]} 37. Qxf5+
{[%clk 0:01:01.5]} 37... Kh4 {[%clk 0:00:05.1]} 38. fxg4 {[%clk 0:00:56]} 38...
Rxg4 {[%clk 0:00:05.1]} 39. Qxg4+ {[%clk 0:00:55.3]} 39... Kxg4 {[%clk
0:00:04.5]} 40. e6 {[%clk 0:00:50.7]} 40... Kxf4 {[%clk 0:00:03.2]} 41. e7
{[%clk 0:00:50.3]} 1-0

[Event "Late-Titled-Tuesday-Blitz-March-05-2024"]
[Site "Chess.com"]
[Date "2024.03.05"]
[Round "6"]
[White "bancsoo"]
[Black "santosalberto1987"]
[Result "1-0"]
[WhiteElo "2883"]
[BlackElo "2551"]
[TimeControl "180+1"]
[EndTime "15:04:50 PST"]
[Termination "bancsoo won by resignation"]

1. Nf3 {[%clk 0:03:00.9]} 1... Nf6 {[%clk 0:02:59]} 2. g3 {[%clk 0:03:01.3]}
2... g6 {[%clk 0:02:55.7]} 3. Bg2 {[%clk 0:03:01.4]} 3... Bg7 {[%clk 0:02:56.2]}
4. d4 {[%clk 0:03:01.9]} 4... O-O {[%clk 0:02:55.6]} 5. c4 {[%clk 0:03:02.2]}
5... d6 {[%clk 0:02:55.5]} 6. Nc3 {[%clk 0:03:02.4]} 6... Nc6 {[%clk 0:02:53.7]}
7. O-O {[%clk 0:03:02]} 7... a6 {[%clk 0:02:52.7]} 8. b3 {[%clk 0:03:01.3]} 8...
Rb8 {[%clk 0:02:52.2]} 9. d5 {[%clk 0:03:01.7]} 9... Na5 {[%clk 0:02:47.9]} 10.
Bg5 {[%clk 0:03:01.6]} 10... c5 {[%clk 0:02:47.4]} 11. dxc6 {[%clk 0:03:01.6]}
11... Nxc6 {[%clk 0:02:46.8]} 12. Rc1 {[%clk 0:03:01.3]} 12... Be6 {[%clk
0:02:36.6]} 13. Qd2 {[%clk 0:02:59.1]} 13... Qa5 {[%clk 0:02:32.4]} 14. Rfd1
{[%clk 0:02:57.9]} 14... Rfc8 {[%clk 0:02:31]} 15. Ne1 {[%clk 0:02:37.5]} 15...
b5 {[%clk 0:02:18.9]} 16. cxb5 {[%clk 0:02:20.1]} 16... axb5 {[%clk 0:02:17.6]}
17. Nd3 {[%clk 0:01:44.4]} 17... b4 {[%clk 0:01:42.6]} 18. Na4 {[%clk
0:01:38.8]} 18... Bd5 {[%clk 0:01:42]} 19. Bxf6 {[%clk 0:01:19.1]} 19... Bxf6
{[%clk 0:01:38.9]} 20. Bxd5 {[%clk 0:00:59.4]} 20... Qxd5 {[%clk 0:01:38.1]} 21.
Nf4 {[%clk 0:00:41.9]} 21... Qxd2 {[%clk 0:01:31.9]} 22. Rxd2 {[%clk 0:00:41.3]}
22... Nd4 {[%clk 0:01:25.4]} 23. Rxc8+ {[%clk 0:00:40.6]} 23... Rxc8 {[%clk
0:01:25.5]} 24. Nd5 {[%clk 0:00:40.7]} 24... Nb5 {[%clk 0:01:04.1]} 25. Nxb4
{[%clk 0:00:37.6]} 25... Rc1+ {[%clk 0:01:00]} 26. Kg2 {[%clk 0:00:37.8]} 26...
Nc3 {[%clk 0:00:59.9]} 27. Nxc3 {[%clk 0:00:31.7]} 27... Bxc3 {[%clk 0:00:51]}
28. Rc2 {[%clk 0:00:31.9]} 28... Rxc2 {[%clk 0:00:49.5]} 29. Nxc2 {[%clk
0:00:32.8]} 29... f5 {[%clk 0:00:47.4]} 30. Kf3 {[%clk 0:00:32.2]} 30... Kf7
{[%clk 0:00:46.1]} 31. e3 {[%clk 0:00:32.2]} 31... e5 {[%clk 0:00:45.4]} 32. Ke2
{[%clk 0:00:32.2]} 32... Ke6 {[%clk 0:00:40.9]} 33. Kd3 {[%clk 0:00:31.9]} 33...
Ba5 {[%clk 0:00:39.3]} 34. Kc4 {[%clk 0:00:32.3]} 34... Bd2 {[%clk 0:00:32.2]}
35. a4 {[%clk 0:00:31.1]} 35... d5+ {[%clk 0:00:32.5]} 36. Kb5 {[%clk
0:00:31.5]} 36... Kd6 {[%clk 0:00:30.7]} 37. a5 {[%clk 0:00:31.4]} 37... Kc7
{[%clk 0:00:30.8]} 38. b4 {[%clk 0:00:30.8]} 38... Bc3 {[%clk 0:00:23.7]} 39.
Kc5 {[%clk 0:00:30.8]} 1-0

[Event "Late-Titled-Tuesday-Blitz-March-05-2024"]
[Site "Chess.com"]
[Date "2024.03.05"]
[Round "6"]
[White "Mikhail_Golubev"]
[Black "Bkmzzzzz"]
[Result "1-0"]
[WhiteElo "2636"]
[BlackElo "2410"]
[TimeControl "180+1"]
[EndTime "15:04:50 PST"]
[Termination "Mikhail_Golubev won by resignation"]

1. e4 {[%clk 0:03:00.9]} 1... d6 {[%clk 0:02:58.6]} 2. d4 {[%clk 0:02:59.9]}
2... Nf6 {[%clk 0:02:58.3]} 3. Nc3 {[%clk 0:03:00.5]} 3... e5 {[%clk 0:02:56.6]}
4. Nf3 {[%clk 0:02:57.1]} 4... Nbd7 {[%clk 0:02:55.8]} 5. Bc4 {[%clk 0:02:56.7]}
5... Be7 {[%clk 0:02:55.4]} 6. a4 {[%clk 0:02:56.8]} 6... c6 {[%clk 0:02:54.7]}
7. O-O {[%clk 0:02:53.4]} 7... O-O {[%clk 0:02:54.4]} 8. Re1 {[%clk 0:02:50.4]}
8... b6 {[%clk 0:02:53.7]} 9. h3 {[%clk 0:02:43.1]} 9... a6 {[%clk 0:02:52.7]}
10. Be3 {[%clk 0:02:31.1]} 10... Bb7 {[%clk 0:02:23.4]} 11. Bb3 {[%clk 0:02:31]}
11... b5 {[%clk 0:02:22.3]} 12. dxe5 {[%clk 0:01:40.6]} 12... dxe5 {[%clk
0:01:52.4]} 13. Nh4 {[%clk 0:01:31.7]} 13... Nc5 {[%clk 0:01:42]} 14. Qxd8
{[%clk 0:01:24.5]} 14... Rfxd8 {[%clk 0:01:36.3]} 15. Nf5 {[%clk 0:01:24.6]}
15... Bf8 {[%clk 0:01:32.6]} 16. Bg5 {[%clk 0:01:16.5]} 16... Nxb3 {[%clk
0:01:21.1]} 17. cxb3 {[%clk 0:01:17.4]} 17... b4 {[%clk 0:01:19.2]} 18. Ne2
{[%clk 0:01:08.3]} 18... Rd3 {[%clk 0:01:08.8]} 19. Bxf6 {[%clk 0:00:53]} 19...
gxf6 {[%clk 0:01:09.7]} 20. Neg3 {[%clk 0:00:53.3]} 20... Rxb3 {[%clk
0:01:04.6]} 21. Nh5 {[%clk 0:00:53.3]} 21... Bc8 {[%clk 0:00:54.5]} 22. Nxf6+
{[%clk 0:00:50.3]} 22... Kh8 {[%clk 0:00:54]} 23. Rac1 {[%clk 0:00:47.2]} 23...
c5 {[%clk 0:00:41.7]} 24. Red1 {[%clk 0:00:40]} 24... Rxb2 {[%clk 0:00:33.1]}
25. Rd8 {[%clk 0:00:34.2]} 25... Bb7 {[%clk 0:00:30.6]} 26. Rd7 {[%clk
0:00:33.6]} 26... Bc8 {[%clk 0:00:19.7]} 27. Rxf7 {[%clk 0:00:31]} 27... Bxf5
{[%clk 0:00:19.8]} 28. exf5 {[%clk 0:00:31.2]} 28... Bg7 {[%clk 0:00:19.4]} 29.
Nh5 {[%clk 0:00:25.6]} 29... Bh6 {[%clk 0:00:19.8]} 30. Rxc5 {[%clk 0:00:17.4]}
30... Rb8 {[%clk 0:00:18.6]} 31. Rcc7 {[%clk 0:00:16.3]} 31... Kg8 {[%clk
0:00:18.1]} 32. Nf6+ {[%clk 0:00:15.6]} 1-0

[Event "Late-Titled-Tuesday-Blitz-March-05-2024"]
[Site "Chess.com"]
[Date "2024.03.05"]
[Round "6"]
[White "bazar-wokzal"]
[Black "Akhayan"]
[Result "1-0"]
[WhiteElo "2567"]
[BlackElo "2392"]
[TimeControl "180+1"]
[EndTime "15:04:50 PST"]
[Termination "bazar-wokzal won on time"]

1. e4 {[%clk 0:02:58.2]} 1... c5 {[%clk 0:02:59.4]} 2. c3 {[%clk 0:02:58]} 2...
d5 {[%clk 0:02:57.2]} 3. exd5 {[%clk 0:02:58.1]} 3... Qxd5 {[%clk 0:02:57.8]} 4.
d4 {[%clk 0:02:58.6]} 4... Nf6 {[%clk 0:02:55.2]} 5. Nf3 {[%clk 0:02:58.8]} 5...
Nc6 {[%clk 0:02:49]} 6. Be3 {[%clk 0:02:56.8]} 6... cxd4 {[%clk 0:02:48.7]} 7.
cxd4 {[%clk 0:02:56.8]} 7... e5 {[%clk 0:02:49]} 8. Nc3 {[%clk 0:02:56.4]} 8...
Bb4 {[%clk 0:02:48.2]} 9. dxe5 {[%clk 0:02:50.4]} 9... Qxd1+ {[%clk 0:02:43.3]}
10. Rxd1 {[%clk 0:02:49.7]} 10... Ng4 {[%clk 0:02:40.6]} 11. Bf4 {[%clk
0:02:44.6]} 11... Bc5 {[%clk 0:02:38.4]} 12. Ne4 {[%clk 0:02:44.5]} 12... Bb4+
{[%clk 0:02:35.1]} 13. Bd2 {[%clk 0:02:12.8]} 13... O-O {[%clk 0:02:29.8]} 14.
Bxb4 {[%clk 0:02:02.3]} 14... Nxb4 {[%clk 0:02:29.5]} 15. Bc4 {[%clk 0:02:00.8]}
15... Nc6 {[%clk 0:01:36.2]} 16. Nd6 {[%clk 0:01:31.4]} 16... Ngxe5 {[%clk
0:01:33.7]} 17. Nxe5 {[%clk 0:01:30.6]} 17... Nxe5 {[%clk 0:01:34.2]} 18. Bb3
{[%clk 0:01:30.2]} 18... Bg4 {[%clk 0:01:20.9]} 19. f3 {[%clk 0:01:21.4]} 19...
Nxf3+ {[%clk 0:01:10.8]} 20. gxf3 {[%clk 0:01:19.9]} 20... Bxf3 {[%clk
0:01:11.1]} 21. Kf2 {[%clk 0:01:01.2]} 21... Bxh1 {[%clk 0:01:09.9]} 22. Rxh1
{[%clk 0:01:00]} 22... Rad8 {[%clk 0:01:07.5]} 23. Rd1 {[%clk 0:00:48.1]} 23...
Rd7 {[%clk 0:00:59.3]} 24. Kg3 {[%clk 0:00:30]} 24... g6 {[%clk 0:00:32.8]} 25.
Kf4 {[%clk 0:00:23.6]} 25... Kg7 {[%clk 0:00:31.4]} 26. Nf5+ {[%clk 0:00:22.1]}
26... gxf5 {[%clk 0:00:28.1]} 27. Rxd7 {[%clk 0:00:22.9]} 27... Kf6 {[%clk
0:00:22.8]} 28. Rxb7 {[%clk 0:00:22.3]} 1-0

[Event "Late-Titled-Tuesday-Blitz-March-05-2024"]
[Site "Chess.com"]
[Date "2024.03.05"]
[Round "6"]
[White "AlexeiShirov"]
[Black "TheBigBoss04"]
[Result "1-0"]
[WhiteElo "2866"]
[BlackElo "2683"]
[TimeControl "180+1"]
[EndTime "15:04:52 PST"]
[Termination "AlexeiShirov won on time"]

1. e4 {[%clk 0:03:00.9]} 1... g6 {[%clk 0:02:57.8]} 2. d4 {[%clk 0:03:00.4]}
2... Bg7 {[%clk 0:02:57.7]} 3. Nc3 {[%clk 0:03:01]} 3... d6 {[%clk 0:02:58.1]}
4. f4 {[%clk 0:02:56.4]} 4... Nc6 {[%clk 0:02:54.4]} 5. Be3 {[%clk 0:02:54]}
5... e5 {[%clk 0:02:49.1]} 6. dxe5 {[%clk 0:02:52.7]} 6... dxe5 {[%clk 0:02:45]}
7. Qxd8+ {[%clk 0:02:52.3]} 7... Kxd8 {[%clk 0:02:39]} 8. O-O-O+ {[%clk
0:02:50.5]} 8... Bd7 {[%clk 0:02:38.4]} 9. Nf3 {[%clk 0:02:47.5]} 9... Kc8
{[%clk 0:02:19.9]} 10. Bc4 {[%clk 0:02:46.6]} 10... exf4 {[%clk 0:02:13.2]} 11.
Bxf4 {[%clk 0:02:45.7]} 11... Bh6 {[%clk 0:02:13.7]} 12. g3 {[%clk 0:02:37]}
12... Bxf4+ {[%clk 0:02:08.6]} 13. gxf4 {[%clk 0:02:36.8]} 13... Nge7 {[%clk
0:02:09.1]} 14. Ng5 {[%clk 0:02:34.8]} 14... f6 {[%clk 0:02:03.8]} 15. Be6
{[%clk 0:02:26.2]} 15... Bxe6 {[%clk 0:01:53.2]} 16. Nxe6 {[%clk 0:02:26]} 16...
Nd8 {[%clk 0:01:53.9]} 17. Nc5 {[%clk 0:02:20.9]} 17... b6 {[%clk 0:01:52.3]}
18. Nd7 {[%clk 0:02:19.5]} 18... f5 {[%clk 0:01:47.2]} 19. Ne5 {[%clk
0:02:02.7]} 19... fxe4 {[%clk 0:01:31.7]} 20. Nxe4 {[%clk 0:01:50.8]} 20... Ndc6
{[%clk 0:01:26.8]} 21. Rd7 {[%clk 0:01:40]} 21... Nf5 {[%clk 0:00:58.3]} 22.
Rhd1 {[%clk 0:01:36.1]} 22... Nxe5 {[%clk 0:00:53.7]} 23. fxe5 {[%clk
0:01:34.9]} 23... Re8 {[%clk 0:00:53.8]} 24. Rxh7 {[%clk 0:01:11.1]} 24... Rxe5
{[%clk 0:00:52.6]} 25. Nf6 {[%clk 0:00:56.3]} 25... Kb7 {[%clk 0:00:50]} 26.
Rdd7 {[%clk 0:00:55.1]} 26... Rc8 {[%clk 0:00:46.3]} 27. Nd5 {[%clk 0:00:53.9]}
27... Kc6 {[%clk 0:00:31.6]} 28. Nb4+ {[%clk 0:00:52.3]} 28... Kb7 {[%clk
0:00:30.8]} 29. Nd5 {[%clk 0:00:52.1]} 29... Kc6 {[%clk 0:00:30.9]} 30. Nxc7
{[%clk 0:00:52]} 30... a5 {[%clk 0:00:15.3]} 31. c4 {[%clk 0:00:47.6]} 31... Nd6
{[%clk 0:00:10.4]} 32. b3 {[%clk 0:00:44.6]} 32... Kc5 {[%clk 0:00:06]} 33. Na6+
{[%clk 0:00:42.2]} 33... Kd4 {[%clk 0:00:01.3]} 34. Rxd6+ {[%clk 0:00:42.1]}
34... Ke4 {[%clk 0:00:01.5]} 35. Rh4+ {[%clk 0:00:41.1]} 35... Kf5 {[%clk
0:00:01.5]} 36. Rxb6 {[%clk 0:00:39.7]} 36... Rd8 {[%clk 0:00:01.4]} 37. Rb5
{[%clk 0:00:37.6]} 1-0

[Event "Late-Titled-Tuesday-Blitz-March-05-2024"]
[Site "Chess.com"]
[Date "2024.03.05"]
[Round "6"]
[White "giovannibrandao7"]
[Black "s-dshubin"]
[Result "0-1"]
[WhiteElo "2214"]
[BlackElo "2327"]
[TimeControl "180+1"]
[EndTime "15:04:55 PST"]
[Termination "s-dshubin won on time"]

1. d4 {[%clk 0:03:00.9]} 1... d5 {[%clk 0:02:59.9]} 2. Nf3 {[%clk 0:02:59.4]}
2... Nf6 {[%clk 0:02:59.7]} 3. c4 {[%clk 0:02:57.5]} 3... c6 {[%clk 0:03:00]} 4.
Nc3 {[%clk 0:02:56.9]} 4... e6 {[%clk 0:02:59.3]} 5. g3 {[%clk 0:02:57.3]} 5...
Nbd7 {[%clk 0:02:59]} 6. Bg2 {[%clk 0:02:57.7]} 6... Be7 {[%clk 0:02:59.6]} 7.
O-O {[%clk 0:02:58.1]} 7... O-O {[%clk 0:03:00.2]} 8. Qc2 {[%clk 0:02:58.1]}
8... b6 {[%clk 0:03:00.3]} 9. e4 {[%clk 0:02:58.5]} 9... Nxe4 {[%clk 0:03:00.3]}
10. Nxe4 {[%clk 0:02:59.4]} 10... dxe4 {[%clk 0:03:01.2]} 11. Qxe4 {[%clk
0:03:00]} 11... Bb7 {[%clk 0:03:02.1]} 12. Rd1 {[%clk 0:02:42.2]} 12... Nf6
{[%clk 0:03:02]} 13. Qc2 {[%clk 0:02:40]} 13... Qc7 {[%clk 0:03:01.9]} 14. Bf4
{[%clk 0:02:38.4]} 14... Bd6 {[%clk 0:03:02.3]} 15. Be5 {[%clk 0:02:35.9]} 15...
Rfd8 {[%clk 0:02:57.6]} 16. Rd2 {[%clk 0:02:06.4]} 16... c5 {[%clk 0:02:51.9]}
17. Ng5 {[%clk 0:02:06.2]} 17... Bxe5 {[%clk 0:02:41.8]} 18. dxe5 {[%clk
0:02:05]} 18... Rxd2 {[%clk 0:02:32.6]} 19. Qxd2 {[%clk 0:02:00.4]} 19... Rd8
{[%clk 0:02:23.8]} 20. Qc2 {[%clk 0:01:40.2]} 20... Qxe5 {[%clk 0:02:10.7]} 21.
Nxf7 {[%clk 0:01:38.5]} 21... Kxf7 {[%clk 0:02:09.5]} 22. Bxb7 {[%clk
0:01:38.7]} 22... Qd4 {[%clk 0:02:04.1]} 23. Bf3 {[%clk 0:01:31.4]} 23... Qd2
{[%clk 0:01:55.6]} 24. Rc1 {[%clk 0:01:31.2]} 24... Qxc2 {[%clk 0:01:51.6]} 25.
Rxc2 {[%clk 0:01:32.1]} 25... e5 {[%clk 0:01:52.3]} 26. Kg2 {[%clk 0:01:24.4]}
26... Ke6 {[%clk 0:01:48.8]} 27. b3 {[%clk 0:01:21.3]} 27... Rd3 {[%clk
0:01:33.9]} 28. Be2 {[%clk 0:01:18.8]} 28... Rd4 {[%clk 0:01:33.8]} 29. f3
{[%clk 0:01:01.5]} 29... Ne8 {[%clk 0:01:22.5]} 30. Kf2 {[%clk 0:00:54.1]} 30...
Nd6 {[%clk 0:01:22.8]} 31. g4 {[%clk 0:00:46]} 31... Nc8 {[%clk 0:01:15]} 32.
Ke3 {[%clk 0:00:45.2]} 32... Ne7 {[%clk 0:01:15.4]} 33. Rd2 {[%clk 0:00:44.1]}
33... Ng6 {[%clk 0:01:10.4]} 34. Rxd4 {[%clk 0:00:42.1]} 34... exd4+ {[%clk
0:01:10.2]} 35. Ke4 {[%clk 0:00:38.8]} 35... Ne5 {[%clk 0:00:54.7]} 36. f4
{[%clk 0:00:37.6]} 36... Nc6 {[%clk 0:00:55]} 37. Bf3 {[%clk 0:00:34.4]} 37...
Nb4 {[%clk 0:00:54.3]} 38. a3 {[%clk 0:00:30.1]} 38... Nc2 {[%clk 0:00:54.3]}
39. a4 {[%clk 0:00:30.4]} 39... Ne1 {[%clk 0:00:49.9]} 40. h4 {[%clk 0:00:22.6]}
40... Nxf3 {[%clk 0:00:48.5]} 41. Kxf3 {[%clk 0:00:23]} 41... h5 {[%clk
0:00:45.8]} 42. gxh5 {[%clk 0:00:03.2]} 42... Kf5 {[%clk 0:00:46.2]} 0-1

[Event "Late-Titled-Tuesday-Blitz-March-05-2024"]
[Site "Chess.com"]
[Date "2024.03.05"]
[Round "6"]
[White "ozates"]
[Black "MathiasWomacka"]
[Result "0-1"]
[WhiteElo "2587"]
[BlackElo "2547"]
[TimeControl "180+1"]
[EndTime "15:04:58 PST"]
[Termination "MathiasWomacka won by resignation"]

1. e4 {[%clk 0:03:00.9]} 1... c5 {[%clk 0:03:00.4]} 2. Nf3 {[%clk 0:03:00.8]}
2... d6 {[%clk 0:03:00.9]} 3. c3 {[%clk 0:02:59.3]} 3... Nf6 {[%clk 0:02:59.9]}
4. Bd3 {[%clk 0:02:59.2]} 4... Bg4 {[%clk 0:02:58.6]} 5. Bc2 {[%clk 0:02:58.5]}
5... e6 {[%clk 0:02:53.7]} 6. d3 {[%clk 0:02:58.5]} 6... Be7 {[%clk 0:02:52.8]}
7. h3 {[%clk 0:02:59.3]} 7... Bh5 {[%clk 0:02:52.1]} 8. Nbd2 {[%clk 0:02:59.9]}
8... Nc6 {[%clk 0:02:50.3]} 9. O-O {[%clk 0:02:59.6]} 9... O-O {[%clk
0:02:49.2]} 10. Re1 {[%clk 0:03:00.3]} 10... d5 {[%clk 0:02:47.4]} 11. Qe2
{[%clk 0:02:55.7]} 11... Qc7 {[%clk 0:02:39.7]} 12. Nf1 {[%clk 0:02:52.6]} 12...
b5 {[%clk 0:02:23.5]} 13. Ng3 {[%clk 0:02:51.7]} 13... Bg6 {[%clk 0:02:22.1]}
14. e5 {[%clk 0:02:38.5]} 14... Nd7 {[%clk 0:02:21.5]} 15. h4 {[%clk 0:02:38.1]}
15... h6 {[%clk 0:02:05]} 16. h5 {[%clk 0:02:38.1]} 16... Bh7 {[%clk 0:02:04.9]}
17. Bf4 {[%clk 0:02:37.9]} 17... b4 {[%clk 0:02:01.1]} 18. d4 {[%clk 0:02:28.1]}
18... Bxc2 {[%clk 0:01:55.5]} 19. Qxc2 {[%clk 0:02:28.4]} 19... bxc3 {[%clk
0:01:50]} 20. bxc3 {[%clk 0:02:29.3]} 20... Rab8 {[%clk 0:01:45.7]} 21. Nh2
{[%clk 0:02:25.7]} 21... Rfc8 {[%clk 0:01:35.1]} 22. Qd2 {[%clk 0:02:22.4]}
22... cxd4 {[%clk 0:01:22.5]} 23. Bxh6 {[%clk 0:02:21.4]} 23... dxc3 {[%clk
0:01:22.3]} 24. Qf4 {[%clk 0:02:21.3]} 24... Ndxe5 {[%clk 0:01:10.2]} 25. Bxg7
{[%clk 0:02:16.4]} 25... Kxg7 {[%clk 0:01:08.5]} 26. h6+ {[%clk 0:02:17]} 26...
Kh7 {[%clk 0:01:01]} 27. Ng4 {[%clk 0:02:17.1]} 27... f5 {[%clk 0:00:46.2]} 28.
Nxf5 {[%clk 0:02:13.1]} 28... Nxg4 {[%clk 0:00:39.5]} 29. Qxg4 {[%clk
0:02:11.6]} 29... Rg8 {[%clk 0:00:36.5]} 30. Ng7 {[%clk 0:02:09.4]} 30... Bf6
{[%clk 0:00:24.7]} 31. Rxe6 {[%clk 0:01:45.2]} 31... Bxg7 {[%clk 0:00:23.7]} 32.
Qg6+ {[%clk 0:01:30.9]} 32... Kh8 {[%clk 0:00:23.2]} 33. Rxc6 {[%clk 0:01:27.3]}
33... Qe5 {[%clk 0:00:16.5]} 34. hxg7+ {[%clk 0:01:22.6]} 34... Rxg7 {[%clk
0:00:16.6]} 35. Qh6+ {[%clk 0:01:22.7]} 35... Rh7 {[%clk 0:00:16.3]} 36. Qg6
{[%clk 0:00:48.5]} 36... c2 {[%clk 0:00:15.3]} 37. Rc1 {[%clk 0:00:41.2]} 37...
Qh2+ {[%clk 0:00:13.3]} 38. Kf1 {[%clk 0:00:41]} 38... Qh1+ {[%clk 0:00:13.3]}
39. Ke2 {[%clk 0:00:41.6]} 39... Qxc1 {[%clk 0:00:13]} 40. Qf6+ {[%clk
0:00:40.4]} 40... Rg7 {[%clk 0:00:13.2]} 41. Qh6+ {[%clk 0:00:32.7]} 41... Qxh6
{[%clk 0:00:11.4]} 0-1